fUST/lending_fUST_20250610
["ID","MTS","AMOUNT","RATE_DAILY","PERIOD"]
[365241420,1749561045775,-460.0,0.00021917,4]
[365241422,1749561045786,-529.09584801,0.00021917,4]
[365241424,1749561045795,-460.0,0.00021917,4]
[365241426,1749561045804,-460.0,0.00021917,4]
[365241433,1749561045943,-460.0,0.00021917,4]
[365241435,1749561045953,-1753.44,0.00021917,4]
[365241438,1749561045963,-460.0,0.00021917,4]
[365241441,1749561045972,-460.0,0.00021917,4]
[365241444,1749561045981,-209.32061377,0.00021917,4]
[365241447,1749561045991,-273.35850707,0.00021918,2]
[365241450,1749561046000,-153.43569152,0.00021921,2]
[365241453,1749561046009,-1000.0,0.00021921,2]
[365241455,1749561046019,-1000.0,0.00021921,2]
[365241457,1749561046028,-500.0,0.00021973,2]
[365241459,1749561046037,-500.0,0.00021973,2]
[365241461,1749561046047,-500.0,0.00021973,2]
[365241463,1749561046056,-151.0,0.00022,5]
[365241465,1749561046066,-1047.60775708,0.00022003,6]
[365241468,1749561046075,-3000.0,0.000221,2]
[365241471,1749561046084,-3000.0,0.000221,2]
[365241473,1749561046093,-151.0,0.000221,6]
[365241475,1749561046102,-3000.0,0.0002211,2]
[365241477,1749561046111,-3000.0,0.0002211,2]
[365241479,1749561046121,-3000.0,0.0002212,2]
[365241481,1749561046133,-3000.0,0.0002212,2]
[365241483,1749561046142,-3000.0,0.0002213,2]
[365241485,1749561046151,-3000.0,0.0002213,2]
[365241487,1749561046161,-3000.0,0.0002214,2]
[365241489,1749561046171,-3000.0,0.0002214,2]
[365241491,1749561046182,-1047.60775708,0.00022141,6]
[365241492,1749561046191,-3000.0,0.0002215,2]
[365241495,1749561046201,-3000.0,0.0002215,2]
[365241497,1749561046211,-3000.0,0.0002216,2]
[365241499,1749561046221,-3000.0,0.0002216,2]
[365241500,1749561046230,-1500.0,0.00022168,2]
[365241502,1749561046239,-424.66240697,0.00022168,2]
[365241505,1749561046249,-1500.0,0.00022168,2]
[365241506,1749561046259,-1500.0,0.00022168,2]
[365241509,1749561046268,-3000.0,0.0002217,2]
[365241510,1749561046278,-3000.0,0.0002217,2]
[365241512,1749561046287,-3000.0,0.0002218,2]
[365241514,1749561046298,-3000.0,0.0002218,2]
[365241517,1749561046308,-3000.0,0.0002219,2]
[365241518,1749561046318,-3000.0,0.0002219,2]
[365241520,1749561046328,-500.0,0.0002219,2]
[365241522,1749561046337,-500.0,0.0002219,2]
[365241524,1749561046347,-500.0,0.0002219,2]
[365241526,1749561046356,-500.0,0.0002219,2]
[365241528,1749561046365,-500.0,0.0002219,2]
[365241531,1749561046375,-500.0,0.0002219,2]
[365241533,1749561046384,-500.0,0.0002219,2]
[365241534,1749561046393,-500.0,0.0002219,2]
[365241536,1749561046403,-500.0,0.0002219,2]
[365241538,1749561046412,-500.0,0.0002219,2]
[365241540,1749561046421,-214.4024201,0.0002219,2]
[365241542,1749561046430,-500.0,0.0002219,2]
[365241544,1749561046440,-285.7866153,0.0002219,2]
[365241546,1749561046449,-500.0,0.0002219,2]
[365241548,1749561046459,-500.0,0.0002219,2]
[365241550,1749561046468,-500.0,0.0002219,2]
[365241552,1749561046478,-500.0,0.0002219,2]
[365241554,1749561046487,-500.0,0.0002219,2]
[365241556,1749561046497,-508.33333333,0.0002219,2]
[365241558,1749561046507,-508.33333333,0.0002219,2]
[365241561,1749561046519,-508.33333333,0.0002219,2]
[365241562,1749561046528,-508.33333333,0.0002219,2]
[365241565,1749561046538,-508.33333333,0.0002219,2]
[365241567,1749561046548,-508.33333333,0.0002219,2]
[365241569,1749561046558,-508.33333333,0.0002219,2]
[365241571,1749561046568,-508.33333333,0.0002219,2]
[365241573,1749561046578,-508.33333333,0.0002219,2]
[365241575,1749561046587,-508.33333333,0.0002219,2]
[365241577,1749561046597,-508.33333333,0.0002219,2]
[365241579,1749561046606,-508.33333333,0.0002219,2]
[365241581,1749561046615,-508.33333333,0.0002219,2]
[365241583,1749561046624,-508.33333333,0.0002219,2]
[365241585,1749561046633,-508.33333333,0.0002219,2]
[365241587,1749561046643,-601.875,0.0002219,2]
[365241589,1749561046652,-601.875,0.0002219,2]
[365241591,1749561046661,-601.875,0.0002219,2]
[365241593,1749561046671,-601.875,0.0002219,2]
[365241595,1749561046680,-460.0,0.00022191,4]
[365241597,1749561046689,-460.0,0.00022191,4]
[365241599,1749561046698,-460.0,0.00022191,4]
[365241601,1749561046708,-460.0,0.00022191,4]
[365241603,1749561046717,-460.0,0.00022191,4]
[365241605,1749561046727,-440.0,0.00022191,4]
[365241607,1749561046736,-460.0,0.00022191,4]
[365241609,1749561046745,-460.0,0.00022191,4]
[365241611,1749561046754,-460.0,0.00022191,4]
[365241613,1749561046764,-460.0,0.00022191,4]
[365241615,1749561046773,-548.64,0.00022191,4]
[365241617,1749561046782,-318.64818622,0.00022191,4]
[365241619,1749561046792,-460.0,0.00022191,4]
[365241620,1749561046802,-460.0,0.00022191,4]
[365241622,1749561046812,-743.81,0.00022191,4]
[365241624,1749561046821,-390.0,0.00022191,4]
[365241626,1749561046830,-460.0,0.00022191,4]
[365241628,1749561046840,-460.0,0.00022191,4]
[365241630,1749561046849,-460.0,0.00022191,4]
[365241633,1749561046858,-460.0,0.00022191,4]
[365241635,1749561046868,-460.0,0.00022191,4]
[365241637,1749561046877,-460.0,0.00022191,4]
[365241639,1749561046887,-460.0,0.00022191,4]
[365241641,1749561046897,-460.0,0.00022191,4]
[365241643,1749561046906,-460.0,0.00022191,4]
[365241645,1749561046916,-460.0,0.00022191,4]
[365241647,1749561046925,-460.0,0.00022191,4]
[365241649,1749561046934,-340.04408824,0.00022191,4]
[365241651,1749561046944,-460.0,0.00022191,4]
[365241653,1749561046954,-460.0,0.00022191,4]
[365241655,1749561046963,-310.0,0.00022191,4]
[365241657,1749561046974,-460.0,0.00022191,4]
[365241659,1749561046983,-460.0,0.00022191,4]
[365241661,1749561046993,-460.0,0.00022191,4]
[365241663,1749561047002,-460.0,0.00022191,4]
[365241665,1749561047012,-460.0,0.00022191,4]
[365241667,1749561047022,-460.0,0.00022191,4]
[365241669,1749561047032,-460.0,0.00022191,4]
[365241671,1749561047041,-266.87892435,0.00022191,4]
[365241673,1749561047051,-460.0,0.00022191,4]
[365241675,1749561047061,-460.0,0.00022191,4]
[365241677,1749561047070,-460.0,0.00022191,4]
[365241679,1749561047080,-460.0,0.00022191,4]
[365241681,1749561047089,-346.44018176,0.00022191,4]
[365241683,1749561047099,-460.0,0.00022191,4]
[365241685,1749561047108,-460.0,0.00022191,4]
[365241687,1749561047118,-971.69,0.00022191,4]
[365241689,1749561047129,-556.97,0.00022191,4]
[365241691,1749561047141,-460.0,0.00022191,4]
[365241693,1749561047150,-310.0,0.00022191,4]
[365241695,1749561047159,-460.0,0.00022191,4]
[365241697,1749561047168,-460.0,0.00022191,4]
[365241699,1749561047177,-460.0,0.00022191,4]
[365241701,1749561047187,-734.77,0.00022191,4]
[365241703,1749561047196,-460.0,0.00022191,4]
[365241705,1749561047206,-460.0,0.00022191,4]
[365241707,1749561047217,-460.0,0.00022191,4]
[365241709,1749561047227,-460.0,0.00022191,4]
[365241710,1749561047237,-460.0,0.00022191,4]
[365241712,1749561047247,-801.41,0.00022191,4]
[365241714,1749561047256,-1316.66,0.00022191,4]
[365241716,1749561047265,-460.0,0.00022191,4]
[365241719,1749561047275,-1658.85,0.00022191,4]
[365241720,1749561047284,-374.43680875,0.00022191,4]
[365241723,1749561047293,-460.0,0.00022191,4]
[365241724,1749561047304,-460.0,0.00022191,4]
[365241727,1749561047313,-1213.09,0.00022191,4]
[365241729,1749561047323,-460.0,0.00022191,4]
[365241731,1749561047332,-460.0,0.00022191,4]
[365241733,1749561047341,-460.0,0.00022191,4]
[365241734,1749561047351,-514.93,0.00022191,4]
[365241736,1749561047360,-460.0,0.00022191,4]
[365241739,1749561047370,-1402.9,0.00022191,4]
[365241741,1749561047379,-460.0,0.00022191,4]
[365241742,1749561047388,-460.0,0.00022191,4]
[365241745,1749561047398,-460.0,0.00022191,4]
[365241747,1749561047408,-460.0,0.00022191,4]
[365241749,1749561047417,-460.0,0.00022191,4]
[365241751,1749561047427,-460.0,0.00022191,4]
[365241753,1749561047436,-460.0,0.00022191,4]
[365241754,1749561047445,-310.0,0.00022191,4]
[365241756,1749561047454,-460.0,0.00022191,4]
[365241758,1749561047464,-476.21,0.00022191,4]
[365241761,1749561047474,-460.0,0.00022191,4]
[365241763,1749561047484,-460.0,0.00022191,4]
[365241765,1749561047494,-500.0,0.00022191,4]
[365241767,1749561047503,-570.54,0.00022191,4]
[365241768,1749561047513,-462.2,0.00022191,4]
[365241770,1749561047522,-460.0,0.00022191,4]
[365241773,1749561047532,-460.0,0.00022191,4]
[365241775,1749561047542,-2814.84,0.00022191,4]
[365241777,1749561047552,-420.0,0.00022191,4]
[365241779,1749561047561,-460.0,0.00022191,4]
[365241781,1749561047571,-460.0,0.00022191,4]
[365241783,1749561047580,-1561.2,0.00022191,4]
[365241785,1749561047589,-460.0,0.00022191,4]
[365241787,1749561047599,-460.0,0.00022191,4]
[365241789,1749561047609,-460.0,0.00022191,4]
[365241791,1749561047618,-460.0,0.00022191,4]
[365241793,1749561047627,-460.0,0.00022191,4]
[365241795,1749561047637,-460.0,0.00022191,4]
[365241797,1749561047646,-460.0,0.00022191,4]
[365241799,1749561047655,-572.65,0.00022191,4]
[365241801,1749561047665,-460.0,0.00022191,4]
[365241802,1749561047674,-3102.55,0.00022191,4]
[365241804,1749561047684,-460.0,0.00022191,4]
[365241807,1749561047693,-460.0,0.00022191,4]
[365241809,1749561047703,-1032.23,0.00022191,4]
[365241810,1749561047712,-460.0,0.00022191,4]
[365241812,1749561047721,-460.0,0.00022191,4]
[365241814,1749561047731,-460.0,0.00022191,4]
[365241817,1749561047741,-691.63,0.00022191,4]
[365241818,1749561047751,-2508.23,0.00022191,4]
[365241820,1749561047761,-460.0,0.00022191,4]
[365241823,1749561047771,-460.0,0.00022191,4]
[365241825,1749561047780,-1142.03,0.00022191,4]
[365241827,1749561047789,-460.0,0.00022191,4]
[365241829,1749561047799,-2970.71,0.00022191,4]
[365241831,1749561047811,-764.17,0.00022191,4]
[365241833,1749561047820,-460.0,0.00022191,4]
[365241834,1749561047829,-460.0,0.00022191,4]
[365241836,1749561047839,-460.0,0.00022191,4]
[365241838,1749561047848,-2964.47,0.00022191,4]
[365241840,1749561047858,-1685.96,0.00022191,4]
[365241842,1749561047868,-603.4,0.00022191,4]
[365241844,1749561047877,-741.45,0.00022191,2]
[365241847,1749561047887,-460.0,0.00022191,4]
[365241849,1749561047896,-460.0,0.00022191,4]
[365241851,1749561047906,-460.0,0.00022191,4]
[365241853,1749561047916,-657.06,0.00022191,4]
[365241855,1749561047926,-460.0,0.00022191,4]
[365241857,1749561047936,-460.0,0.00022191,4]
[365241859,1749561047945,-460.0,0.00022191,4]
[365241861,1749561047954,-460.0,0.00022191,4]
[365241863,1749561047963,-1753.44,0.00022191,4]
[365241865,1749561047973,-460.0,0.00022191,4]
[365241867,1749561047983,-460.0,0.00022191,4]
[365241869,1749561047992,-3000.0,0.000222,2]
[365241871,1749561048002,-3000.0,0.000222,2]
[365241873,1749561048015,-160.65084303,0.000222,69]
[365241875,1749561048026,-3000.0,0.0002221,2]
[365241877,1749561048035,-3000.0,0.0002221,2]
[365241879,1749561048045,-3000.0,0.0002222,2]
[365241881,1749561048056,-3000.0,0.0002222,2]
[365241883,1749561048066,-1200.0,0.00022221,2]
[365241885,1749561048075,-3000.0,0.0002223,2]
[365241887,1749561048085,-3000.0,0.0002223,2]
[365241889,1749561048095,-4391.430499,0.0002224,2]
[365241892,1749561048105,-3000.0,0.0002224,2]
[365241893,1749561048116,-3000.0,0.0002225,2]
[365241895,1749561048126,-3000.0,0.0002226,2]
[365241898,1749561048141,-3000.0,0.0002227,2]
[365241900,1749561048150,-1047.60775708,0.00022279,6]
[365241901,1749561048160,-3000.0,0.0002228,2]
[365241903,1749561048170,-3000.0,0.0002229,2]
[365241905,1749561048180,-3000.0,0.000223,2]
[365241908,1749561048189,-151.0,0.000223,8]
[365241910,1749561048199,-3000.0,0.0002231,2]
[365241911,1749561048210,-3000.0,0.0002232,2]
[365241913,1749561048220,-3000.0,0.0002233,2]
[365241915,1749561048229,-3000.0,0.0002234,2]
[365241918,1749561048238,-3000.0,0.0002235,2]
[365241920,1749561048248,-3000.0,0.0002236,2]
[365241921,1749561048258,-3000.0,0.0002237,2]
[365241924,1749561048267,-3000.0,0.0002238,2]
[365241925,1749561048276,-3000.0,0.0002239,2]
[365241928,1749561048286,-3000.0,0.000224,2]
[365241930,1749561048296,-3000.0,0.0002241,2]
[365241932,1749561048306,-1047.60775708,0.00022417,7]
[365241933,1749561048316,-3000.0,0.0002242,2]
[365241935,1749561048326,-2742.7598419,0.0002243,2]
[365242018,1749561049163,-800.0,0.00019769,2]
[365242020,1749561049174,-760.03,0.00021085,10]
[365242023,1749561049184,-450.04937114,0.00021095,4]
[365242024,1749561049195,-460.0,0.00021095,4]
[365242027,1749561049205,-500.0,0.00021367,2]
[365242029,1749561049216,-500.0,0.00021367,2]
[365242030,1749561049227,-500.0,0.00021367,2]
[365242032,1749561049237,-500.0,0.00021367,2]
[365242035,1749561049247,-500.0,0.00021367,2]
[365242037,1749561049257,-500.0,0.00021367,2]
[365242039,1749561049267,-253.69206714,0.00021367,2]
[365242041,1749561049278,-500.0,0.00021367,2]
[365242042,1749561049288,-500.0,0.00021367,2]
[365242044,1749561049298,-500.0,0.00021367,2]
[365242046,1749561049309,-500.0,0.00021367,2]
[365242048,1749561049319,-162.2681012,0.00021367,2]
[365242050,1749561049329,-310.64657157,0.00021367,2]
[365242052,1749561049339,-500.0,0.00021367,2]
[365242054,1749561049349,-500.0,0.00021367,2]
[365242056,1749561049358,-500.0,0.00021367,2]
[365242058,1749561049367,-500.0,0.00021367,2]
[365242060,1749561049377,-500.0,0.00021367,2]
[365242062,1749561049387,-500.0,0.00021367,2]
[365242064,1749561049397,-500.0,0.00021367,2]
[365242066,1749561049407,-500.0,0.00021367,2]
[365242068,1749561049416,-500.0,0.00021367,2]
[365242070,1749561049426,-500.0,0.00021367,2]
[365242072,1749561049436,-188.68759651,0.00021367,2]
[365242074,1749561049445,-500.0,0.00021367,2]
[365242076,1749561049455,-500.0,0.00021367,2]
[365242078,1749561049465,-460.0,0.00021369,4]
[365242080,1749561049475,-2332.21,0.00021643,4]
[365242082,1749561049484,-460.0,0.00021643,4]
[365242084,1749561049494,-460.0,0.00021917,4]
[365242086,1749561049504,-2332.21,0.00021917,4]
[365242088,1749561049513,-800.0,0.00021961,2]
[365242090,1749561049524,-460.0,0.00022191,4]
[365242092,1749561049534,-2332.21,0.00022191,4]
[365242094,1749561049543,-257.2401581,0.0002243,2]
[365242096,1749561049552,-3000.0,0.0002244,2]
[365242097,1749561049563,-3000.0,0.0002245,2]
[365242100,1749561049573,-16000.0,0.00022451,2]
[365242102,1749561049583,-433.04,0.00022455,3]
[365242103,1749561049593,-1515.68,0.00022455,3]
[365242105,1749561049602,-757.84,0.00022455,3]
[365242107,1749561049612,-378.92,0.00022455,3]
[365242109,1749561049622,-3000.0,0.0002246,2]
[365242111,1749561049633,-161.67036696,0.00022464,2]
[365242114,1749561049643,-460.0,0.00022465,4]
[365242115,1749561049652,-460.0,0.00022465,4]
[365242117,1749561049662,-340.0,0.00022465,4]
[365242119,1749561049672,-460.0,0.00022465,4]
[365242121,1749561049681,-460.0,0.00022465,4]
[365242123,1749561049692,-460.0,0.00022465,4]
[365242125,1749561049702,-548.64,0.00022465,4]
[365242128,1749561049712,-460.0,0.00022465,4]
[365242129,1749561049721,-460.0,0.00022465,4]
[365242132,1749561049731,-743.81,0.00022465,4]
[365242133,1749561049741,-460.0,0.00022465,4]
[365242136,1749561049751,-460.0,0.00022465,4]
[365242137,1749561049760,-453.60493372,0.00022465,4]
[365242139,1749561049770,-460.0,0.00022465,4]
[365242141,1749561049779,-460.0,0.00022465,4]
[365242143,1749561049789,-344.02007907,0.00022465,4]
[365242145,1749561049799,-270.0,0.00022465,4]
[365242147,1749561049809,-270.0,0.00022465,4]
[365242149,1749561049818,-460.0,0.00022465,4]
[365242151,1749561049827,-460.0,0.00022465,4]
[365242153,1749561049837,-460.0,0.00022465,4]
[365242155,1749561049847,-460.0,0.00022465,4]
[365242157,1749561049857,-280.0,0.00022465,4]
[365242159,1749561049866,-460.0,0.00022465,4]
[365242161,1749561049875,-460.0,0.00022465,4]
[365242163,1749561049885,-460.0,0.00022465,4]
[365242165,1749561049894,-460.0,0.00022465,4]
[365242167,1749561049905,-460.0,0.00022465,4]
[365242169,1749561049915,-460.0,0.00022465,4]
[365242171,1749561049925,-460.0,0.00022465,4]
[365242173,1749561049934,-460.0,0.00022465,4]
[365242175,1749561049944,-460.0,0.00022465,4]
[365242177,1749561049953,-460.0,0.00022465,4]
[365242179,1749561049963,-460.0,0.00022465,4]
[365242181,1749561049973,-460.0,0.00022465,4]
[365242183,1749561049982,-460.0,0.00022465,4]
[365242185,1749561049992,-556.97,0.00022465,4]
[365242187,1749561050001,-460.0,0.00022465,4]
[365242189,1749561050012,-460.0,0.00022465,4]
[365242191,1749561050022,-460.0,0.00022465,4]
[365242193,1749561050031,-734.77,0.00022465,4]
[365242195,1749561050040,-460.0,0.00022465,4]
[365242197,1749561050049,-385.00518978,0.00022465,4]
[365242199,1749561050060,-460.0,0.00022465,4]
[365242201,1749561050069,-410.0,0.00022465,4]
[365242203,1749561050079,-460.0,0.00022465,4]
[365242204,1749561050089,-801.41,0.00022465,4]
[365242206,1749561050098,-460.0,0.00022465,4]
[365242208,1749561050108,-1658.85,0.00022465,4]
[365242210,1749561050118,-460.0,0.00022465,4]
[365242212,1749561050128,-340.0,0.00022465,4]
[365242214,1749561050143,-1213.09,0.00022465,4]
[365242216,1749561050152,-460.0,0.00022465,4]
[365242218,1749561050161,-460.0,0.00022465,4]
[365242220,1749561050172,-374.74654054,0.00022465,4]
[365242222,1749561050182,-514.93,0.00022465,4]
[365242224,1749561050192,-460.0,0.00022465,4]
[365242226,1749561050201,-1402.9,0.00022465,4]
[365242228,1749561050211,-460.0,0.00022465,4]
[365242230,1749561050221,-460.0,0.00022465,4]
[365242232,1749561050232,-460.0,0.00022465,4]
[365242234,1749561050241,-460.0,0.00022465,4]
[365242236,1749561050252,-460.0,0.00022465,4]
[365242238,1749561050262,-460.0,0.00022465,4]
[365242240,1749561050272,-460.0,0.00022465,4]
[365242242,1749561050283,-460.0,0.00022465,4]
[365242243,1749561050292,-476.21,0.00022465,4]
[365242245,1749561050302,-460.0,0.00022465,4]
[365242247,1749561050313,-460.0,0.00022465,4]
[365242249,1749561050323,-508.34594437,0.00022465,4]
[365242251,1749561050333,-570.54,0.00022465,4]
[365242253,1749561050343,-462.2,0.00022465,4]
[365242255,1749561050353,-460.0,0.00022465,4]
[365242257,1749561050362,-460.0,0.00022465,4]
[365242259,1749561050372,-2814.84,0.00022465,4]
[365242261,1749561050381,-460.0,0.00022465,4]
[365242263,1749561050391,-460.0,0.00022465,4]
[365242265,1749561050400,-1561.2,0.00022465,4]
[365242267,1749561050410,-460.0,0.00022465,4]
[365242269,1749561050420,-382.8,0.00022465,4]
[365242271,1749561050429,-460.0,0.00022465,4]
[365242273,1749561050439,-511.07382944,0.00022465,4]
[365242275,1749561050449,-260.0,0.00022465,4]
[365242277,1749561050459,-460.0,0.00022465,4]
[365242279,1749561050470,-460.0,0.00022465,4]
[365242281,1749561050479,-572.65,0.00022465,4]
[365242283,1749561050490,-460.0,0.00022465,4]
[365242285,1749561050500,-3102.55,0.00022465,4]
[365242287,1749561050509,-460.0,0.00022465,4]
[365242289,1749561050518,-460.0,0.00022465,4]
[365242291,1749561050527,-1032.23,0.00022465,4]
[365242293,1749561050536,-460.0,0.00022465,4]
[365242294,1749561050545,-460.0,0.00022465,4]
[365242296,1749561050555,-476.38101383,0.00022465,4]
[365242298,1749561050565,-691.63,0.00022465,4]
[365242300,1749561050575,-2508.23,0.00022465,4]
[365242302,1749561050586,-340.0,0.00022465,4]
[365242304,1749561050595,-460.0,0.00022465,4]
[365242306,1749561050605,-1142.03,0.00022465,4]
[365242308,1749561050615,-460.0,0.00022465,4]
[365242310,1749561050625,-2970.71,0.00022465,4]
[365242312,1749561050634,-764.17,0.00022465,4]
[365242314,1749561050643,-460.0,0.00022465,4]
[365242316,1749561050653,-460.0,0.00022465,4]
[365242318,1749561050662,-460.0,0.00022465,4]
[365242320,1749561050671,-2964.47,0.00022465,4]
[365242322,1749561050681,-1685.96,0.00022465,4]
[365242324,1749561050691,-603.4,0.00022465,4]
[365242326,1749561050700,-741.45,0.00022465,2]
[365242328,1749561050709,-460.0,0.00022465,4]
[365242330,1749561050719,-460.0,0.00022465,4]
[365242332,1749561050728,-460.0,0.00022465,4]
[365242334,1749561050737,-657.06,0.00022465,4]
[365242336,1749561050748,-460.0,0.00022465,4]
[365242338,1749561050758,-192.88,0.00022465,4]
[365242340,1749561050767,-460.0,0.00022465,4]
[365242342,1749561050776,-1753.44,0.00022465,4]
[365242344,1749561050786,-460.0,0.00022465,4]
[365242346,1749561050795,-460.0,0.00022465,4]
[365242347,1749561050805,-436.73886677,0.00022465,4]
[365242349,1749561050815,-460.0,0.00022465,4]
[365242351,1749561050824,-2332.21,0.00022465,4]
[365242353,1749561050833,-1500.0,0.00022468,2]
[365242355,1749561050842,-1500.0,0.00022468,2]
[365242357,1749561050852,-3000.0,0.0002247,2]
[365242359,1749561050861,-500.0,0.00022473,2]
[365242361,1749561050870,-562.74902061,0.00022473,2]
[365242363,1749561050880,-500.0,0.00022473,2]
[365242365,1749561050888,-500.0,0.00022473,2]
[365242367,1749561050898,-258.52074538,0.00022473,2]
[365242369,1749561050907,-160.07517388,0.00022473,2]
[365242371,1749561050916,-501.86450876,0.00022473,2]
[365242373,1749561050925,-3000.0,0.0002248,2]
[365242375,1749561050934,-3000.0,0.0002249,2]
[365242377,1749561050943,-3000.0,0.000225,2]
[365242379,1749561050953,-160.0,0.00022501,3]
[365242381,1749561050962,-3000.0,0.0002251,2]
[365242383,1749561050971,-3000.0,0.0002252,2]
[365242385,1749561050981,-513.9240945,0.00022521,2]
[365242386,1749561050990,-3000.0,0.0002253,2]
[365242388,1749561050999,-4095.109001,0.0002254,2]
[365242390,1749561051008,-1047.60775708,0.00022555,7]
[365242392,1749561051017,-4934.35,0.00022655,2]
[365242394,1749561051026,-151.0,0.0002266,7]
[365242396,1749561051036,-1047.60775708,0.00022693,7]
[365242398,1749561051045,-280.25135639,0.00022716,2]
[365242400,1749561051057,-1544.23233376,0.00022716,2]
[365242402,1749561051066,-526.91160882,0.00022716,2]
[365242404,1749561051076,-167.93628771,0.00022739,4]
[365242406,1749561051085,-460.0,0.00022739,4]
[365242408,1749561051094,-460.0,0.00022739,4]
[365242410,1749561051104,-460.0,0.00022739,4]
[365242412,1749561051113,-460.0,0.00022739,4]
[365242414,1749561051123,-548.64,0.00022739,4]
[365242416,1749561051134,-460.0,0.00022739,4]
[365242418,1749561051145,-460.0,0.00022739,4]
[365242419,1749561051154,-743.81,0.00022739,4]
[365242420,1749561051163,-460.0,0.00022739,4]
[365242421,1749561051172,-460.0,0.00022739,4]
[365242422,1749561051182,-460.0,0.00022739,4]
[365242423,1749561051191,-460.0,0.00022739,4]
[365242424,1749561051200,-460.0,0.00022739,4]
[365242425,1749561051209,-460.0,0.00022739,4]
[365242426,1749561051219,-460.0,0.00022739,4]
[365242427,1749561051228,-460.0,0.00022739,4]
[365242428,1749561051238,-501.486605,0.00022739,4]
[365242429,1749561051248,-460.0,0.00022739,4]
[365242430,1749561051258,-312.43958677,0.00022739,4]
[365242431,1749561051268,-460.0,0.00022739,4]
[365242432,1749561051277,-460.0,0.00022739,4]
[365242433,1749561051287,-460.0,0.00022739,4]
[365242434,1749561051298,-260.0,0.00022739,4]
[365242435,1749561051307,-460.0,0.00022739,4]
[365242436,1749561051316,-460.0,0.00022739,4]
[365242437,1749561051326,-460.0,0.00022739,4]
[365242438,1749561051335,-460.0,0.00022739,4]
[365242439,1749561051345,-460.0,0.00022739,4]
[365242451,1749561051355,-366.52078024,0.00022739,4]
[365242453,1749561051479,-556.97,0.00022739,4]
[365242455,1749561051489,-460.0,0.00022739,4]
[365242457,1749561051499,-460.0,0.00022739,4]
[365242459,1749561051509,-460.0,0.00022739,4]
[365242461,1749561051519,-734.77,0.00022739,4]
[365242463,1749561051529,-460.0,0.00022739,4]
[365242465,1749561051539,-460.0,0.00022739,4]
[365242467,1749561051549,-460.0,0.00022739,4]
[365242470,1749561051560,-801.41,0.00022739,4]
[365242471,1749561051569,-460.0,0.00022739,4]
[365242473,1749561051579,-1658.85,0.00022739,4]
[365242475,1749561051589,-460.0,0.00022739,4]
[365242477,1749561051599,-1213.09,0.00022739,4]
[365242479,1749561051608,-460.0,0.00022739,4]
[365242481,1749561051619,-460.0,0.00022739,4]
[365242484,1749561051629,-514.93,0.00022739,4]
[365242486,1749561051639,-460.0,0.00022739,4]
[365242488,1749561051648,-1402.9,0.00022739,4]
[365242490,1749561051658,-460.0,0.00022739,4]
[365242492,1749561051669,-320.86799031,0.00022739,4]
[365242494,1749561051679,-460.0,0.00022739,4]
[365242496,1749561051689,-320.0,0.00022739,4]